bitfinex/quotes_BTCUSD_20220304
["timestamp","ask_amount","ask_price","bid_price","bid_amount"]
[1646374071858,0.18620279,41525.0,41516.0,0.28591574]
[1646374072712,0.18620279,41525.0,41514.0,0.01204]
[1646374073314,0.18620279,41525.0,41513.0,0.36789455]
[1646374073711,0.18620279,41525.0,41513.0,0.21789455]
[1646374074714,0.18620279,41525.0,41512.0,0.3078657]
[1646374074915,0.23480279,41525.0,41511.0,0.21583896]
[1646374075515,0.23480279,41525.0,41514.0,0.23617023]
[1646374076661,0.0486,41525.0,41514.0,0.23617023]
[1646374076860,0.02416,41530.0,41514.0,0.23617023]
[1646374076861,0.006,41529.0,41514.0,0.23617023]
[1646374077757,0.26861834,41526.0,41514.0,0.23617023]
[1646374079807,0.26861834,41526.0,41514.0,0.45225964]
[1646374080007,0.26861834,41526.0,41516.0,0.15]
[1646374080709,0.26861834,41526.0,41514.0,0.23617023]
[1646374080910,0.19140942,41521.0,41514.0,0.23617023]
[1646374081710,0.26861834,41526.0,41514.0,0.23617023]
[1646374081913,0.3078657,41525.0,41514.0,0.23617023]
[1646374082913,0.40142824,41523.0,41514.0,0.23617023]
[1646374083115,0.19229044,41523.0,41514.0,0.23617023]
[1646374084765,0.19229044,41523.0,41514.0,0.40380169]
[1646374084964,0.3078657,41522.0,41508.0,0.01204]
[1646374085169,0.76166,41520.0,41508.0,0.01204]
[1646374085367,1.4849757,41519.0,41505.0,0.2423]
[1646374085668,0.7233157,41519.0,41505.0,0.2423]
[1646374085865,0.7233157,41519.0,41505.0,0.4604004]
[1646374086066,0.25434932,41514.0,41506.0,0.16243762]
[1646374086264,0.0486,41513.0,41506.0,0.16243762]
[1646374086867,0.0486,41513.0,41506.0,0.16233275]
[1646374088215,0.0486,41513.0,41507.0,0.15903207]
[1646374088411,0.0486,41513.0,41506.0,0.16233275]
[1646374090714,0.2644795,41513.0,41506.0,0.16233275]
[1646374091265,0.2644795,41513.0,41502.0,0.4579]
[1646374091863,0.2644795,41513.0,41502.0,0.124]
[1646374092063,0.0486,41513.0,41505.0,0.1984025]
[1646374092563,0.3078657,41515.0,41505.0,0.1984025]
[1646374092564,0.3078657,41515.0,41505.0,0.39621005]
[1646374092763,0.0486,41516.0,41505.0,0.1984025]
[1646374092962,0.30667728,41515.0,41505.0,0.1984025]
[1646374093164,0.22496786,41514.0,41505.0,0.41564651]
[1646374093466,0.22496786,41514.0,41505.0,0.47699935]
[1646374093663,0.22496786,41514.0,41502.0,0.124]
[1646374093867,0.22496786,41514.0,41503.0,0.16849284]
[1646374094664,0.22496786,41514.0,41503.0,0.45679692]
[1646374095310,0.22496786,41514.0,41505.0,0.20531725]
[1646374095509,0.22496786,41514.0,41503.0,0.16849284]
[1646374095911,0.30667728,41515.0,41503.0,0.31849284]
[1646374096112,0.0496,41516.0,41503.0,0.31849284]
[1646374096309,0.0486,41516.0,41503.0,0.62517012]
[1646374096710,0.0486,41516.0,41506.0,0.06772939]
[1646374096909,0.27786548,41516.0,41508.0,0.22582231]
[1646374097111,0.0486,41516.0,41508.0,0.22582231]
[1646374097711,0.0486,41516.0,41503.0,0.62517012]
[1646374098563,0.0486,41516.0,41509.0,0.20969194]
[1646374098765,0.21184423,41518.0,41503.0,0.62517012]
[1646374099964,0.21184423,41518.0,41507.0,0.22550601]
[1646374100166,0.21184423,41518.0,41503.0,0.62517012]
[1646374100365,0.17042431,41514.0,41503.0,0.31849284]
[1646374100566,0.17042431,41514.0,41503.0,0.62517012]
[1646374100767,0.17042431,41514.0,41503.0,0.47517012]
[1646374101166,0.21684423,41518.0,41507.0,0.2360621]
[1646374101767,0.21684423,41518.0,41507.0,0.44304478]
[1646374101967,0.21684423,41518.0,41503.0,0.62517012]
[1646374102167,0.21521097,41517.0,41503.0,0.16849284]
[1646374102411,0.21521097,41517.0,41503.0,0.47517012]
[1646374103011,0.21184423,41518.0,41507.0,0.45620712]
[1646374103211,0.21184423,41518.0,41507.0,0.23843024]
[1646374103813,0.21184423,41518.0,41503.0,0.47517012]
[1646374104017,0.99329077,41517.0,41503.0,0.16849284]
[1646374104215,0.99329077,41517.0,41504.0,0.17185076]
[1646374104414,0.25579077,41517.0,41504.0,0.23751131]
[1646374104613,0.25579077,41517.0,41504.0,0.17185076]
[1646374104913,0.25579077,41517.0,41504.0,0.21354311]
[1646374105814,0.22579077,41517.0,41504.0,0.21354311]
[1646374107172,0.22579077,41517.0,41507.0,0.19189689]
[1646374107372,0.22579077,41517.0,41505.0,0.15]
[1646374107573,0.0186,41517.0,41505.0,0.15]
[1646374108373,0.0186,41517.0,41504.0,0.21354311]
[1646374108573,0.001,41514.0,41505.0,0.15]
[1646374108975,0.001,41514.0,41504.0,0.21354311]
[1646374109675,0.001,41514.0,41505.0,0.16249381]
[1646374110309,0.001,41514.0,41510.0,0.1703719]
[1646374111209,0.001,41514.0,41511.0,0.23879979]
[1646374111418,0.001,41514.0,41512.0,0.30544696]
[1646374111613,0.001,41514.0,41513.0,0.15]
[1646374112511,0.27311464,41527.0,41519.0,0.17352924]
[1646374112810,0.27311464,41527.0,41520.0,0.26483412]
[1646374113010,0.15951464,41527.0,41520.0,0.26483412]
[1646374114389,0.15951464,41527.0,41519.0,0.17352924]
[1646374114587,0.15951464,41527.0,41514.0,0.30744696]
[1646374114788,0.89701464,41527.0,41514.0,0.002]
[1646374115186,0.15951464,41527.0,41514.0,0.002]
[1646374115487,0.15951464,41527.0,41516.0,0.21640318]
[1646374115686,0.15951464,41527.0,41516.0,0.39096836]
[1646374116387,0.36685,41526.0,41516.0,0.39096836]
[1646374119017,0.15951464,41527.0,41516.0,0.39096836]
[1646374119416,0.15951464,41527.0,41518.0,0.16289115]
[1646374119619,0.36685,41526.0,41518.0,0.16289115]
[1646374120017,0.36685,41526.0,41516.0,0.39096836]
[1646374120316,0.15951464,41527.0,41516.0,0.39096836]
[1646374121157,0.15951464,41527.0,41516.0,0.60185742]
[1646374121357,0.15951464,41527.0,41516.0,0.39096836]
[1646374121358,0.36685,41526.0,41516.0,0.39096836]
[1646374121759,0.15951464,41527.0,41516.0,0.39096836]
[1646374122058,0.15951464,41527.0,41514.0,0.152]
[1646374122059,0.15951464,41527.0,41514.0,0.002]
[1646374122264,0.36685,41525.0,41514.0,0.002]
[1646374122659,0.36685,41524.0,41514.0,0.002]
[1646374122860,0.12463769,41521.0,41514.0,0.002]
[1646374123059,0.33838251,41521.0,41514.0,0.002]
[1646374123460,0.12463769,41521.0,41514.0,0.002]
[1646374123662,0.36685,41520.0,41514.0,0.002]
[1646374124460,0.24248384,41518.0,41514.0,0.002]
[1646374124662,0.33275233,41521.0,41514.0,0.002]
[1646374124917,0.36685,41520.0,41514.0,0.002]
[1646374125112,0.37385,41520.0,41514.0,0.002]
[1646374126315,0.36685,41520.0,41514.0,0.002]
[1646374127615,0.03585836,41522.0,41514.0,0.002]
[1646374127816,0.36685,41521.0,41514.0,0.002]
[1646374128565,0.20903825,41519.0,41514.0,0.002]
[1646374128763,0.36685,41518.0,41514.0,0.002]
[1646374129163,0.25146898,41522.0,41514.0,0.002]
[1646374129367,0.36685,41521.0,41514.0,0.002]
[1646374130165,0.2628982,41520.0,41514.0,0.002]
[1646374130365,0.36685,41519.0,41514.0,0.002]
[1646374130765,0.2628982,41520.0,41514.0,0.002]
[1646374130965,0.36685,41519.0,41514.0,0.002]
[1646374131165,0.006,41520.0,41514.0,0.002]
[1646374132321,0.25146898,41522.0,41514.0,0.002]
[1646374132530,0.36685,41521.0,41514.0,0.002]
[1646374133724,0.21415474,41519.0,41514.0,0.002]
[1646374134125,0.15951464,41521.0,41514.0,0.002]
[1646374134527,0.03585836,41522.0,41514.0,0.002]
[1646374134827,0.03585836,41522.0,41511.0,0.28057674]
[1646374135326,0.25593971,41522.0,41511.0,0.28057674]
[1646374136263,0.25593971,41522.0,41514.0,0.20335371]
[1646374137766,0.03585836,41522.0,41514.0,0.20335371]
[1646374137964,0.36685,41521.0,41514.0,0.20335371]
[1646374138166,0.03585836,41522.0,41514.0,0.20335371]
[1646374139367,0.03585836,41522.0,41514.0,0.50752533]
[1646374139823,0.03585836,41522.0,41511.0,0.1248]
[1646374141121,0.03585836,41522.0,41511.0,0.28312315]
[1646374143324,0.17336653,41523.0,41513.0,0.15]
[1646374143863,0.17336653,41523.0,41511.0,0.28312315]
[1646374144058,0.17336653,41523.0,41511.0,0.1248]
[1646374144059,0.17328296,41523.0,41511.0,0.1248]
[1646374144262,0.17328296,41523.0,41513.0,0.25080919]
[1646374144263,0.30417162,41522.0,41513.0,0.25080919]
[1646374144459,0.67102162,41522.0,41511.0,0.1248]
[1646374144660,0.30417162,41522.0,41511.0,0.1248]
[1646374145059,0.13366396,41516.0,41511.0,0.1248]
[1646374145258,0.13366396,41516.0,41506.0,0.25]
[1646374145461,0.13366396,41516.0,41510.0,0.15]
[1646374145759,0.13366396,41516.0,41510.0,0.41802034]
[1646374145958,0.13366396,41516.0,41510.0,0.26802034]
[1646374146264,0.13366396,41516.0,41506.0,0.25]
[1646374146458,0.13366396,41516.0,41506.0,0.15]
[1646374146659,0.13366396,41516.0,41506.0,0.25]
[1646374146858,0.13366396,41516.0,41510.0,0.15]
[1646374147317,0.13366396,41516.0,41509.0,0.26650677]
[1646374147717,0.13366396,41516.0,41510.0,0.15]
[1646374148519,0.13366396,41516.0,41509.0,0.26650677]
[1646374148719,0.30417162,41515.0,41505.0,0.1]
[1646374148921,0.36685,41514.0,41503.0,0.2317]
[1646374149122,0.36685,41512.0,41503.0,0.115]
[1646374149319,0.0486,41511.0,41503.0,0.115]
[1646374149519,0.36685,41510.0,41503.0,0.115]
[1646374149721,0.0486,41509.0,41503.0,0.115]
[1646374149925,0.0486,41509.0,41501.0,0.43311792]
[1646374150521,0.0486,41509.0,41504.0,0.15]
[1646374150724,0.0486,41509.0,41501.0,0.43311792]
[1646374154068,0.0486,41509.0,41501.0,0.25858033]
[1646374156209,0.0486,41509.0,41504.0,0.19500608]
[1646374156609,0.0486,41509.0,41501.0,0.25858033]
[1646374158662,0.0486,41509.0,41503.0,0.15800541]
[1646374159063,0.03550733,41512.0,41506.0,0.20010103]
[1646374159261,0.30417162,41514.0,41506.0,0.20010103]
[1646374159659,0.36685,41513.0,41506.0,0.20010103]
[1646374159861,0.30417162,41514.0,41506.0,0.20010103]
[1646374160665,0.30417162,41514.0,41502.0,0.1174]
[1646374160863,0.15951464,41515.0,41502.0,0.1174]
[1646374161065,0.15951464,41515.0,41511.0,0.18188087]
[1646374161273,0.46633167,41519.0,41509.0,0.30417162]
[1646374161274,0.33983576,41519.0,41509.0,0.30417162]
[1646374161466,0.18032112,41519.0,41509.0,0.30417162]
[1646374161765,0.002,41520.0,41508.0,0.15]
[1646374161966,0.18682437,41519.0,41508.0,0.15]
[1646374162519,0.27257219,41518.0,41508.0,0.15]
[1646374162722,0.18682437,41519.0,41508.0,0.15]
[1646374163020,0.18682437,41519.0,41509.0,0.15]
[1646374163222,0.19082437,41519.0,41509.0,0.15]
[1646374163418,0.30417162,41518.0,41509.0,0.15]
[1646374163619,0.19082437,41519.0,41509.0,0.15]
[1646374163922,0.19082437,41519.0,41514.0,0.27013553]
[1646374163923,0.004,41519.0,41514.0,0.27013553]
[1646374164518,0.19552055,41525.0,41514.0,0.27013553]
[1646374164719,0.36685,41524.0,41514.0,0.27013553]
[1646374164922,0.2161733,41520.0,41510.0,0.3265902]
[1646374165220,0.2161733,41520.0,41510.0,0.15]
[1646374166068,0.2161733,41520.0,41513.0,0.23174113]
[1646374166470,0.30417162,41523.0,41513.0,0.23174113]
[1646374167270,0.30417162,41523.0,41513.0,0.43994609]
[1646374167469,0.30417162,41523.0,41513.0,0.23174113]
[1646374167470,0.54108972,41522.0,41513.0,0.23174113]
[1646374167670,0.17423972,41522.0,41513.0,0.23174113]
[1646374168573,0.36685,41521.0,41513.0,0.23174113]
[1646374168777,0.30417162,41520.0,41507.0,0.14156]
[1646374169375,0.30417162,41520.0,41510.0,0.15]
[1646374170019,0.36685,41519.0,41507.0,0.1174]
[1646374170214,0.36685,41518.0,41507.0,0.1174]
[1646374170414,0.30417162,41517.0,41507.0,0.1174]
[1646374170816,0.27466619,41511.0,41507.0,0.1174]
[1646374171014,0.27466619,41511.0,41503.0,0.1]
[1646374171015,0.40737339,41511.0,41502.0,0.3564]
[1646374171216,0.1327072,41511.0,41501.0,0.15]
[1646374171619,0.1218,41516.0,41501.0,0.15]
[1646374171620,0.30417162,41515.0,41501.0,0.15]
[1646374171816,0.30417162,41515.0,41503.0,0.060285]
[1646374172016,0.30417162,41515.0,41504.0,0.19650242]
[1646374172216,0.22207735,41513.0,41505.0,0.26019489]
[1646374172418,0.22207735,41513.0,41504.0,0.19650242]
[1646374172717,0.18826217,41513.0,41504.0,0.19650242]
[1646374173566,0.24711856,41515.0,41507.0,0.23052977]
[1646374173769,0.36685,41515.0,41503.0,0.42107162]
[1646374173970,0.15951464,41516.0,41503.0,0.1169]
[1646374174369,0.7375,41517.0,41503.0,0.1169]
[1646374174571,0.17108526,41514.0,41503.0,0.1169]
[1646374174872,0.17108526,41514.0,41504.0,0.26115013]
[1646374176074,0.37981623,41514.0,41504.0,0.26115013]
[1646374176274,0.17108526,41514.0,41504.0,0.26115013]
[1646374176778,0.36685,41512.0,41503.0,0.1169]
[1646374176975,0.0486,41511.0,41503.0,0.1169]
[1646374178215,0.36685,41509.0,41503.0,0.1169]
[1646374178416,0.0486,41511.0,41498.0,0.2538]
[1646374179216,0.24341226,41508.0,41498.0,0.2538]
[1646374179916,0.0486,41511.0,41498.0,0.2538]
[1646374180115,0.0486,41511.0,41500.0,0.15]
[1646374180316,0.0486,41511.0,41501.0,0.15]
[1646374180516,0.3972783,41511.0,41501.0,0.15]
[1646374180917,0.3972783,41511.0,41502.0,0.25033866]
[1646374181162,0.3972783,41511.0,41501.0,0.15]
[1646374181367,0.3972783,41511.0,41501.0,0.33027099]
[1646374182362,0.2404009,41510.0,41501.0,0.36198617]
[1646374182963,0.2404009,41510.0,41501.0,0.15]
[1646374183163,0.5890792,41510.0,41501.0,0.15]
[1646374183366,0.5890792,41510.0,41498.0,0.2538]
[1646374183564,0.13186166,41507.0,41498.0,0.2538]
[1646374183864,0.13186166,41507.0,41497.0,0.1185]
[1646374184264,0.13186166,41507.0,41498.0,0.2441249]
[1646374184465,0.13186166,41507.0,41499.0,0.20656081]
[1646374184668,0.13186166,41507.0,41498.0,0.3941249]
[1646374184911,0.86936166,41507.0,41497.0,0.1185]
[1646374185116,0.41545,41506.0,41497.0,0.1185]
[1646374185312,0.36685,41504.0,41497.0,0.1185]
[1646374185613,0.0486,41503.0,41495.0,0.3619]
[1646374185811,0.0486,41503.0,41493.0,0.15]
[1646374186016,0.20904815,41498.0,41491.0,0.2736]
[1646374186212,0.94654815,41498.0,41491.0,0.15]
[1646374186411,0.20904815,41498.0,41489.0,0.15]
[1646374187010,0.0486,41499.0,41493.0,0.25025345]
[1646374187511,0.0486,41499.0,41493.0,0.40025345]
[1646374187710,0.0486,41499.0,41493.0,0.15]
[1646374187910,0.0486,41499.0,41491.0,0.18761782]
[1646374188112,0.0486,41499.0,41492.0,0.15]
[1646374188563,0.0486,41499.0,41490.0,0.46733661]
[1646374188765,0.0486,41499.0,41491.0,0.25047115]
[1646374191469,0.0486,41499.0,41491.0,0.25037778]
[1646374194926,0.0486,41499.0,41492.0,0.060301]
[1646374195123,0.0486,41499.0,41492.0,0.13200688]
[1646374195723,0.0486,41499.0,41492.0,0.07170588]
[1646374195924,0.0486,41499.0,41491.0,0.25037778]
[1646374197369,0.0486,41499.0,41492.0,0.06639998]
[1646374198371,0.0486,41499.0,41493.0,0.060299]
[1646374198771,0.0486,41499.0,41492.0,0.06639998]
[1646374200217,0.05635545,41499.0,41492.0,0.06622556]
[1646374201016,0.05635545,41499.0,41492.0,0.21622556]
[1646374201614,0.05635545,41499.0,41491.0,0.40037778]
[1646374202415,0.00775545,41499.0,41491.0,0.40037778]
[1646374203116,0.00775545,41499.0,41491.0,0.27453778]
[1646374203316,0.00775545,41499.0,41495.0,0.15]
[1646374203571,0.001,41505.0,41499.0,0.01551089]
[1646374203770,0.001,41505.0,41499.0,0.31968251]
[1646374204171,0.001,41505.0,41499.0,0.01551089]
[1646374204375,0.001,41505.0,41504.0,0.28680416]
[1646374204572,0.1136,41510.0,41504.0,0.59097578]
[1646374204574,0.27316085,41510.0,41504.0,0.59097578]
[1646374204772,0.15956085,41510.0,41504.0,0.43680416]
[1646374205173,0.2594,41514.0,41505.0,0.21413372]
[1646374205374,0.2594,41514.0,41505.0,0.41492688]
[1646374205579,0.19516544,41515.0,41505.0,0.35704392]
[1646374205975,0.04225773,41516.0,41505.0,0.35704392]
[1646374206576,0.39093603,41516.0,41505.0,0.35704392]
[1646374206876,0.3486783,41516.0,41506.0,0.28726368]
[1646374207077,0.3486783,41517.0,41505.0,0.38657392]
[1646374207324,0.3486783,41517.0,41505.0,0.53657392]
[1646374207624,0.1196,41518.0,41505.0,0.53657392]
[1646374207625,0.4682783,41518.0,41505.0,0.53399831]
[1646374207825,0.4682783,41518.0,41511.0,0.23381599]
[1646374208026,0.3546783,41518.0,41506.0,0.1166]
[1646374208330,0.3486783,41517.0,41506.0,0.1166]
[1646374208926,0.3486783,41518.0,41512.0,0.27185226]
[1646374209125,0.3486783,41518.0,41506.0,0.1166]
[1646374209326,0.3486783,41517.0,41506.0,0.1166]
[1646374210427,0.3486783,41517.0,41511.0,0.24861922]
[1646374210626,0.3485583,41517.0,41511.0,0.24861922]
[1646374210830,0.3485583,41517.0,41506.0,0.1166]
[1646374211668,0.3485583,41517.0,41510.0,0.28235052]
[1646374212069,0.3485583,41517.0,41509.0,0.05747879]
[1646374213169,0.3485583,41517.0,41511.0,0.25070544]
[1646374213373,0.3485583,41517.0,41512.0,0.18323999]
[1646374214371,0.006,41518.0,41512.0,0.18323999]
[1646374214570,0.28442257,41522.0,41512.0,0.18323999]
[1646374214818,0.41229336,41521.0,41512.0,0.18323999]
[1646374215023,0.04544336,41520.0,41512.0,0.18323999]
[1646374215220,0.04544336,41521.0,41512.0,0.18323999]
[1646374215420,0.41229336,41520.0,41512.0,0.18323999]
[1646374215621,0.04544336,41519.0,41512.0,0.18323999]
[1646374216120,0.20224782,41522.0,41512.0,0.18323999]
[1646374216420,0.3973433,41521.0,41512.0,0.18323999]
[1646374216620,0.36685,41519.0,41512.0,0.18323999]
[1646374216821,0.03668697,41522.0,41512.0,0.38806784]
[1646374217020,0.03049202,41521.0,41513.0,0.30417162]
[1646374217423,0.03561311,41523.0,41513.0,0.30417162]
[1646374217623,0.0304773,41522.0,41513.0,0.30417162]
[1646374217822,0.34844169,41521.0,41513.0,0.30417162]
[1646374218428,0.0304773,41522.0,41513.0,0.30417162]
[1646374218429,0.34844169,41522.0,41513.0,0.30417162]
[1646374218873,0.34844169,41521.0,41512.0,0.38806784]
[1646374219070,0.34844169,41521.0,41512.0,0.20482785]
[1646374219270,0.34844169,41519.0,41510.0,0.30417162]
[1646374219668,0.34844169,41519.0,41509.0,0.20747879]
[1646374219869,0.34844169,41519.0,41510.0,0.30417162]
[1646374220071,0.34844169,41519.0,41510.0,0.484873]
[1646374221073,0.34844169,41519.0,41513.0,0.22532308]
[1646374221472,0.34844169,41519.0,41510.0,0.18070138]
[1646374222171,0.34844169,41520.0,41510.0,0.18070138]
[1646374222423,0.34844169,41520.0,41510.0,0.484873]
[1646374222722,0.34844169,41520.0,41513.0,0.27774265]
[1646374224325,0.34844169,41520.0,41510.0,0.484873]
[1646374224526,0.34844169,41520.0,41510.0,0.18070138]
[1646374225225,0.34844169,41520.0,41510.0,0.484873]
[1646374225627,0.34844169,41520.0,41512.0,0.060277]
[1646374225829,0.29862309,41518.0,41512.0,0.060277]
[1646374227768,0.29862309,41517.0,41512.0,0.060277]
[1646374228970,0.29862309,41517.0,41513.0,0.30417162]
[1646374229170,0.29862309,41519.0,41512.0,0.060277]
[1646374230033,0.29862309,41518.0,41510.0,0.25585222]
[1646374230633,0.29862309,41519.0,41510.0,0.25585222]
[1646374232032,0.29862309,41519.0,41517.0,0.50664704]
[1646374232233,0.29862309,41521.0,41517.0,0.44180905]
[1646374232434,0.003,41522.0,41520.0,0.15]
[1646374232437,0.30162309,41522.0,41520.0,0.15]
[1646374232635,0.15950478,41524.0,41520.0,0.15]
[1646374232834,0.29862309,41527.0,41520.0,0.15]
[1646374233032,0.29862309,41527.0,41523.0,0.15464722]
[1646374233233,0.29862309,41527.0,41520.0,0.15]
[1646374233433,0.00011371,41520.0,41518.0,0.23401821]
[1646374233673,0.00011371,41520.0,41518.0,0.060263]
[1646374235973,0.00011371,41520.0,41518.0,0.25683649]
[1646374238521,0.00011371,41520.0,41518.0,0.25677509]
[1646374239920,0.00011371,41520.0,41518.0,0.19657349]
[1646374241265,0.00011371,41520.0,41518.0,0.25683449]
[1646374245019,0.00011371,41520.0,41518.0,0.060261]
[1646374245421,0.00011371,41520.0,41516.0,0.1189]
[1646374245422,0.2987368,41520.0,41516.0,0.1189]
[1646374245722,0.2987368,41520.0,41513.0,0.060277]
[1646374245723,0.29862309,41518.0,41513.0,0.060277]
[1646374247121,0.29862309,41517.0,41513.0,0.060277]
[1646374248868,0.60279471,41516.0,41510.0,0.485081]
[1646374249067,0.5358687,41515.0,41510.0,0.485081]
[1646374249267,0.29862309,41515.0,41510.0,0.210281]
[1646374253417,0.29862309,41514.0,41510.0,0.210281]
[1646374256768,0.29862309,41515.0,41510.0,0.210281]
[1646374257970,0.29862309,41514.0,41510.0,0.210281]
[1646374261339,0.29862309,41515.0,41510.0,0.210281]
[1646374262135,0.005,41516.0,41513.0,0.15]
[1646374262339,0.005,41517.0,41516.0,0.00999999]
[1646374262536,0.005,41517.0,41516.0,0.15999999]
[1646374262734,0.00011371,41520.0,41516.0,0.15999999]
[1646374262934,0.00011371,41520.0,41519.0,0.21944465]
[1646374263134,0.00011371,41520.0,41519.0,0.37999168]
[1646374264781,0.00011371,41520.0,41519.0,0.31054703]
[1646374265782,0.00011371,41520.0,41519.0,0.27949233]
[1646374265984,0.00011371,41520.0,41519.0,0.33698854]
[1646374266482,0.00011371,41520.0,41519.0,0.27949233]
[1646374267725,0.00011371,41520.0,41516.0,0.00999999]
[1646374268126,0.00011371,41520.0,41517.0,0.1189453]
[1646374268926,0.00011371,41520.0,41516.0,0.00999999]
[1646374271185,0.29862309,41519.0,41516.0,0.00999999]
[1646374271387,0.29862309,41518.0,41516.0,0.00999999]
[1646374272377,0.29862309,41517.0,41516.0,0.00999999]
[1646374272577,0.29862309,41518.0,41516.0,0.00999999]
[1646374273879,0.29862309,41517.0,41516.0,0.00999999]
[1646374274278,0.29862309,41518.0,41516.0,0.00999999]
[1646374276333,0.45811383,41519.0,41516.0,0.00959439]
[1646374276533,0.29862309,41519.0,41516.0,0.00959439]
[1646374277133,0.29862309,41517.0,41516.0,0.00959439]
[1646374278135,0.29862309,41518.0,41516.0,0.00959439]
[1646374279179,0.29862309,41517.0,41516.0,0.00959439]
[1646374279376,0.29862309,41518.0,41516.0,0.00959439]
[1646374280077,0.29862309,41519.0,41516.0,0.00959439]
[1646374281178,0.29862309,41519.0,41516.0,0.23134628]
[1646374282826,0.2987368,41520.0,41516.0,0.23134628]
[1646374283025,0.00011371,41520.0,41516.0,0.23134628]
[1646374284927,0.00011371,41520.0,41516.0,0.00959439]
[1646374286097,0.00011371,41520.0,41518.0,0.32737792]
[1646374286297,0.00011371,41520.0,41519.0,0.42190964]
[1646374286695,0.00011371,41520.0,41519.0,0.30296434]
[1646374287095,0.00011371,41520.0,41519.0,0.42190964]
[1646374288399,0.00011371,41520.0,41519.0,0.1189453]
[1646374288798,0.00011371,41520.0,41518.0,0.061261]
[1646374288998,0.00011371,41520.0,41518.0,0.060261]
[1646374289198,0.29677848,41523.0,41518.0,0.060261]
[1646374289600,0.29677848,41523.0,41516.0,0.31255873]
[1646374289827,0.007,41524.0,41518.0,0.26892796]
[1646374290930,0.34844169,41525.0,41518.0,0.32919396]
[1646374291328,0.34844169,41525.0,41522.0,0.18624007]
[1646374291629,0.36685,41523.0,41518.0,0.32919396]
[1646374291829,0.34844169,41525.0,41518.0,0.32919396]
[1646374292028,0.36685,41524.0,41518.0,0.26892796]
[1646374292230,0.34844169,41525.0,41518.0,0.060267]
[1646374292428,0.34844169,41525.0,41516.0,0.00959439]
[1646374292630,0.34844169,41523.0,41516.0,0.00959439]
[1646374292828,0.34844169,41523.0,41517.0,0.1766468]
[1646374293433,0.34844169,41523.0,41516.0,0.00959439]
[1646374294576,0.34844169,41523.0,41517.0,0.18301463]
[1646374294976,0.34844169,41523.0,41516.0,0.00959439]
[1646374295377,0.34844169,41522.0,41516.0,0.00959439]
[1646374295578,0.34844169,41523.0,41516.0,0.00959439]
[1646374295778,0.34844169,41522.0,41516.0,0.00959439]
[1646374297323,0.29877226,41520.0,41516.0,0.00959439]
[1646374298724,0.29877226,41519.0,41516.0,0.00959439]
[1646374299324,0.29877226,41520.0,41516.0,0.00959439]
[1646374299525,0.29877226,41520.0,41517.0,0.060267]
[1646374299726,0.29877226,41521.0,41517.0,0.060267]
[1646374304380,0.29877226,41520.0,41517.0,0.060267]
[1646374305326,0.29877226,41520.0,41518.0,0.24222704]
[1646374305928,0.29877226,41521.0,41518.0,0.24222704]
[1646374306729,0.09517028,41525.0,41518.0,0.24222704]
[1646374306730,0.29877226,41519.0,41518.0,0.24222704]
[1646374307229,0.29877226,41520.0,41518.0,0.24222704]
[1646374307928,0.29877226,41521.0,41518.0,0.24222704]
[1646374308131,0.29877226,41520.0,41518.0,0.24222704]
[1646374312175,0.29877226,41521.0,41518.0,0.24222704]
[1646374312725,0.006,41525.0,41517.0,0.060267]
[1646374312726,0.29877226,41520.0,41517.0,0.060267]
[1646374313727,0.29877226,41520.0,41518.0,0.23586086]
[1646374314327,0.29877226,41519.0,41517.0,0.06018537]
[1646374315129,0.29877226,41520.0,41517.0,0.06018537]
[1646374316479,0.29877226,41520.0,41519.0,0.0999]
[1646374316685,0.29877226,41520.0,41519.0,0.20989393]
[1646374316882,0.29877226,41520.0,41517.0,0.06018537]
[1646374318081,0.29877226,41520.0,41519.0,0.24824388]
[1646374318482,0.29877226,41520.0,41519.0,0.2234195]
[1646374318682,0.29877226,41520.0,41517.0,0.06018537]
[1646374319483,0.29877226,41521.0,41517.0,0.06018537]
[1646374319927,0.29877226,41521.0,41518.0,0.30170092]
[1646374320327,0.29877226,41521.0,41519.0,0.24684873]
[1646374322631,0.29877226,41521.0,41520.0,0.42221592]
[1646374323032,0.29877226,41521.0,41520.0,0.120515]
[1646374323435,0.29877226,41522.0,41520.0,0.42221592]
[1646374323682,0.29877226,41522.0,41521.0,0.42221892]
[1646374323879,0.29877226,41523.0,41521.0,0.42221892]
[1646374324079,0.29877226,41523.0,41522.0,0.30170092]
[1646374324277,0.35444169,41525.0,41522.0,0.30170092]
[1646374324879,0.35444169,41525.0,41521.0,0.120518]
[1646374325078,0.29884478,41522.0,41521.0,0.120518]
[1646374325478,0.29884478,41522.0,41521.0,0.42221892]
[1646374326079,0.29884478,41522.0,41521.0,0.095518]
[1646374326278,0.29884478,41523.0,41521.0,0.095518]
[1646374326478,0.29884478,41522.0,41521.0,0.095518]
[1646374327735,0.29884478,41522.0,41521.0,0.39596356]
[1646374328531,0.29884478,41522.0,41521.0,0.095518]
[1646374328735,0.35444169,41524.0,41521.0,0.095518]
[1646374328933,0.34844169,41523.0,41521.0,0.095518]
[1646374329634,0.32844169,41523.0,41521.0,0.095518]
[1646374331086,0.005,41527.0,41521.0,0.095518]
[1646374331286,0.29884397,41522.0,41521.0,0.095518]
[1646374331688,0.15945183,41531.0,41521.0,0.095518]
[1646374331886,0.29884284,41522.0,41521.0,0.095518]
[1646374332090,0.25234736,41529.0,41521.0,0.095518]
[1646374332288,0.29884317,41522.0,41521.0,0.095518]
[1646374332486,0.25234736,41529.0,41521.0,0.095518]
[1646374332686,0.0989809,41528.0,41521.0,0.095518]
[1646374334290,0.29884382,41522.0,41521.0,0.095518]
[1646374334489,0.25234736,41529.0,41521.0,0.095518]
[1646374334688,0.29884374,41522.0,41521.0,0.095518]
[1646374334939,0.25234736,41529.0,41521.0,0.095518]
[1646374335137,0.29884061,41523.0,41521.0,0.095518]
[1646374335539,0.29884061,41522.0,41521.0,0.095518]
[1646374336237,0.29883774,41522.0,41521.0,0.095518]
[1646374338584,0.29883774,41522.0,41521.0,0.08596621]
[1646374341890,0.29383774,41522.0,41521.0,0.08596621]
[1646374344839,0.34863291,41525.0,41521.0,0.08596621]
[1646374346784,0.09525759,41527.0,41522.0,0.3]
[1646374346785,0.34863291,41526.0,41522.0,0.3]
[1646374346991,0.34863291,41528.0,41525.0,0.1189453]
[1646374347187,0.34863291,41529.0,41526.0,0.3]
[1646374347586,0.34863291,41530.0,41525.0,0.1189453]
[1646374347787,0.34863291,41530.0,41529.0,0.25593842]
[1646374347989,0.34863291,41530.0,41528.0,0.120493]